bitfinex-derivatives/quotes_ETHF0:USTF0_20250125
["timestamp","ask_amount","ask_price","bid_price","bid_amount"]
[1737786176670,0.48653,3289.1,3288.7,0.0045651]
[1737786177459,2.33055768,3289.2,3288.7,0.0045651]
[1737786177769,0.48657,3288.8,3288.7,0.0045651]
[1737786178372,0.5001,3289.1,3288.7,0.0045651]
[1737786178965,0.48656,3288.9,3288.7,0.0045651]
[1737786180169,0.48655,3288.9,3288.7,0.0045651]
[1737786180870,3.2078,3289.0,3288.7,0.0045651]
[1737786180871,3.69434,3289.0,3288.7,0.0045651]
[1737786181071,3.2078,3289.0,3288.8,0.48655]
[1737786181467,0.5001,3289.1,3288.8,0.48655]
[1737786181772,0.9683,3289.4,3288.7,0.0045651]
[1737786182073,0.9683,3289.4,3289.2,0.4865]
[1737786182569,0.9683,3289.4,3288.8,3.2078]
[1737786182767,3.2078,3289.5,3289.2,2.33055768]
[1737786182964,3.2078,3289.5,3289.4,0.48648]
[1737786186063,3.6942,3290.0,3289.2,5.53835768]
[1737786186265,3.6942,3290.0,3289.9,0.4864]
[1737786186566,0.4937,3290.1,3289.9,0.4864]
[1737786186759,0.4937,3290.1,3290.0,0.48639]
[1737786187163,0.5275,3290.3,3290.1,0.48637]
[1737786187467,0.5275,3290.3,3290.2,0.48636]
[1737786187869,0.5275,3290.3,3289.8,2.33055768]
[1737786188068,0.5275,3290.3,3290.1,0.48637]
[1737786188275,0.5275,3290.3,3290.2,0.48636]
[1737786188771,0.0045651,3290.6,3290.5,0.48631]
[1737786190268,0.0045651,3290.6,3290.4,0.48632]
[1737786190664,0.0045651,3290.6,3290.5,0.48631]
[1737786195677,0.0045651,3290.6,3290.3,0.48634]
[1737786196181,0.48633,3290.5,3290.1,3.69417]
[1737786196482,0.48633,3290.5,3290.1,3.2078]
[1737786196779,0.5143,3290.4,3290.0,0.48638]
[1737786196979,0.5143,3290.4,3289.7,0.483]
[1737786196980,3.7221,3290.4,3289.9,0.4864]
[1737786197283,4.2174,3290.4,3289.9,0.4864]
[1737786197483,4.70374,3290.4,3289.9,0.48639]
[1737786197875,4.70374,3290.4,3290.0,0.48638]
[1737786198075,4.2174,3290.4,3289.7,0.483]
[1737786198276,0.48635,3290.3,3289.9,0.4864]
[1737786198579,4.70374,3290.4,3289.9,0.4864]
[1737786199083,4.2174,3290.4,3289.7,0.483]
[1737786199288,4.2174,3290.4,3290.0,0.48638]
[1737786200185,4.2174,3290.4,3289.7,0.483]
[1737786200483,4.2174,3290.4,3290.1,0.48637]
[1737786200878,4.70373,3290.4,3290.0,0.48639]
[1737786201078,4.2174,3290.4,3290.0,0.48639]
[1737786201278,4.2174,3290.4,3290.1,0.48637]
[1737786201484,4.2174,3290.4,3290.0,0.48638]
[1737786202085,4.2174,3290.4,3290.1,0.48637]
[1737786202688,4.2174,3290.4,3290.2,0.48635]
[1737786202889,3.2078,3290.4,3289.8,2.33055768]
[1737786203086,3.2078,3290.4,3290.3,0.48634]
[1737786206581,3.2078,3290.4,3290.2,0.48635]
[1737786207283,3.2078,3290.4,3289.8,2.33055768]
[1737786207583,3.2078,3290.4,3290.2,0.48636]
[1737786208286,3.2078,3290.4,3290.3,0.48634]
[1737786208890,3.2078,3290.4,3289.8,2.33055768]
[1737786209193,3.69414,3290.4,3290.0,0.48637]
[1737786209386,3.69414,3290.4,3289.7,0.483]
[1737786209387,0.48635,3290.3,3289.7,0.483]
[1737786209576,3.2078,3290.4,3290.0,0.48639]
[1737786209780,3.69414,3290.4,3290.0,0.48639]
[1737786210676,3.2078,3290.4,3290.0,0.48639]
[1737786210882,3.69413,3290.4,3290.0,0.48639]
[1737786211286,0.48636,3290.3,3289.7,0.483]
[1737786211479,3.69414,3290.4,3290.0,0.48638]
[1737786211890,3.2078,3290.4,3290.1,0.48637]
[1737786213187,3.2078,3290.4,3289.8,2.33055768]
[1737786213388,3.2078,3290.4,3290.2,0.48635]
[1737786214183,3.2078,3290.4,3290.3,0.48634]
[1737786216789,3.2078,3290.4,3289.6,3.7322]
[1737786216790,0.4864,3290.0,3289.6,3.2078]
[1737786216994,5.53835768,3290.4,3289.6,3.2078]
[1737786216995,0.48641,3289.9,3289.6,3.2078]
[1737786217196,1.5111,3289.8,3289.6,3.2078]
[1737786217698,1.5111,3289.8,3289.6,3.69424]
[1737786218586,1.5111,3289.8,3289.5,0.48645]
[1737786219296,1.5111,3289.8,3289.3,0.48649]
[1737786219496,1.5111,3289.8,3289.5,0.48645]
[1737786220090,3.2078,3290.4,3289.5,2.33055768]
[1737786220298,1.5165,3290.3,3290.0,0.48639]
[1737786221893,1.5165,3290.3,3290.2,0.48636]
[1737786222094,1.5165,3290.3,3289.9,1.0457]
[1737786222291,1.5165,3290.3,3290.1,0.48636]
[1737786223190,1.5165,3290.3,3290.1,0.48637]
[1737786223903,2.00285,3290.3,3290.0,0.48638]
[1737786224201,2.00285,3290.3,3289.5,2.33055768]
[1737786224202,3.2078,3290.2,3289.5,2.33055768]
[1737786224395,0.48641,3289.9,3289.5,2.33055768]
[1737786224587,0.48641,3289.9,3289.6,0.48645]
[1737786224991,0.48641,3289.9,3289.5,2.33055768]
[1737786225192,0.48637,3290.1,3289.4,3.69426]
[1737786225398,0.48641,3289.9,3289.4,3.69426]
[1737786225599,0.48641,3289.9,3289.4,3.2078]
[1737786225789,0.48641,3289.9,3289.5,0.48645]
[1737786226294,2.33055768,3289.7,3288.6,15.04680851]
[1737786226593,5.53835768,3289.4,3288.6,12.71625083]
[1737786226795,0.48655,3289.0,3288.6,12.71625083]
[1737786227196,5.53835768,3289.4,3288.6,12.71625083]
[1737786227600,0.48651,3289.2,3288.7,0.4911351]
[1737786228195,0.48651,3289.2,3288.7,1.0024351]
[1737786228393,0.48651,3289.2,3288.7,0.5158651]
[1737786228593,0.48651,3289.2,3288.8,0.48656]
[1737786229092,3.2078,3289.4,3288.8,0.48656]
[1737786229289,3.2078,3289.4,3289.0,0.48653]
[1737786229493,3.2078,3289.4,3288.7,1.0072651]
[1737786229694,3.2078,3289.4,3288.7,1.4938451]
[1737786229899,3.2078,3289.4,3288.7,1.0072651]
[1737786230200,3.69428,3289.4,3288.7,1.0072651]
[1737786231296,3.69428,3289.4,3288.7,1.4938351]
[1737786231605,3.2078,3289.4,3288.7,1.0072651]
[1737786231808,3.2078,3289.4,3288.8,0.48656]
[1737786232600,3.2078,3289.4,3288.7,1.0072651]
[1737786232895,3.2078,3289.4,3289.0,0.48653]
[1737786233294,3.2078,3289.4,3288.7,1.0072651]
[1737786233498,3.2078,3289.4,3289.2,0.48651]
[1737786235400,3.2078,3289.4,3288.7,1.0072651]
[1737786235594,1.4876,3289.6,3289.4,0.48647]
[1737786235803,1.4876,3289.6,3289.5,0.48646]
[1737786236308,1.4876,3289.6,3289.4,0.48647]
[1737786236601,1.4876,3289.6,3289.2,2.33055768]
[1737786236602,1.4876,3289.6,3289.5,0.48646]
[1737786236906,3.2078,3289.9,3289.2,2.33055768]
[1737786237208,1.5848,3290.2,3290.1,0.48637]
[1737786238108,1.5848,3290.2,3290.0,0.48637]
[1737786238407,1.5848,3290.2,3289.9,3.2078]
[1737786238608,1.5848,3290.2,3290.1,0.48637]
[1737786241211,0.0045651,3290.6,3290.1,2.33055768]
[1737786241416,0.0045651,3290.6,3290.4,0.48632]
[1737786241609,0.0045651,3290.6,3290.5,0.48631]
[1737786247808,0.48617,3291.5,3291.0,0.48623]
[1737786248012,2.08927,3291.5,3290.9,0.48625]
[1737786248214,1.6031,3291.5,3291.1,2.33055768]
[1737786248412,3.2078,3292.0,3291.1,2.33055768]
[1737786248609,1.6031,3291.9,3291.1,2.33055768]
[1737786249016,0.00455789,3291.8,3291.2,0.00455789]
[1737786249307,0.00455789,3291.8,3291.6,0.48615]
[1737786249715,0.00455789,3291.8,3291.5,0.48616]
[1737786250310,0.00455789,3291.8,3291.6,0.48614]
[1737786250509,0.00455789,3291.8,3291.4,2.33055768]
[1737786250814,0.00455789,3291.8,3291.7,0.48614]
[1737786251015,0.00455789,3291.8,3291.6,0.48615]
[1737786251224,0.00455789,3291.8,3291.4,2.33055768]
[1737786251718,0.00455789,3291.8,3291.6,0.48614]
[1737786253719,0.00455789,3291.8,3291.4,2.33055768]
[1737786254021,0.49067789,3291.8,3291.4,2.81672768]
[1737786254224,0.00455789,3291.8,3291.4,2.81672768]
[1737786255123,0.00455789,3291.8,3291.4,2.33055768]
[1737786255321,0.00455789,3291.8,3291.6,0.48614]
[1737786255615,0.00455789,3291.8,3291.7,0.48614]
[1737786256015,0.00455789,3291.8,3291.7,2.81669768]
[1737786256615,0.00455789,3291.8,3291.7,3.35949768]
[1737786263326,0.00455789,3291.8,3291.7,1.02894]
[1737786266931,0.00455789,3291.8,3291.7,3.35949768]
[1737786269929,3.2078,3292.6,3292.5,0.48602]
[1737786270135,0.48595,3293.0,3292.5,2.81657768]
[1737786270337,0.5145,3292.9,3292.5,2.81657768]
[1737786270738,0.5145,3292.9,3292.5,2.33055768]
[1737786270938,0.5145,3292.9,3292.6,0.486]
[1737786271435,0.5145,3292.9,3292.8,2.81652768]
[1737786271843,0.00455789,3293.0,3292.9,0.48596]
[1737786274235,0.00455789,3293.0,3292.9,1.02646]
[1737786282249,0.00688152,3293.0,3292.9,1.02646]
[1737786282454,0.00688152,3293.0,3292.9,3.35701768]
[1737786282748,0.00688152,3293.0,3292.9,3.87601768]
[1737786283549,0.00688152,3293.0,3292.8,5.53835768]
[1737786283749,0.00688152,3293.0,3292.5,2.33055768]
[1737786283946,0.48596,3292.9,3292.5,2.33055768]
[1737786284140,2.04678,3292.8,3292.5,2.33055768]
[1737786284839,1.5608,3292.8,3292.5,2.33055768]
[1737786285045,1.5608,3292.8,3292.5,2.81657768]
[1737786285244,1.5608,3292.8,3292.5,2.33055768]
[1737786285440,1.5608,3292.8,3292.5,2.81656768]
[1737786285842,1.5608,3292.8,3292.5,2.33055768]
[1737786286343,0.48599,3292.7,3292.5,2.33055768]
[1737786286651,2.04679,3292.8,3292.5,2.33055768]
[1737786286950,2.04679,3292.8,3292.4,3.2078]
[1737786287856,2.04679,3292.8,3292.3,0.48604]
[1737786288247,2.04679,3292.8,3292.4,0.48603]
[1737786288750,1.5608,3292.8,3292.4,0.48603]
[1737786290557,2.04678,3292.8,3292.4,0.48603]
[1737786290859,1.5608,3292.8,3292.4,0.48603]
[1737786291548,1.5608,3292.8,3292.5,0.48602]
[1737786292552,1.5608,3292.8,3292.2,2.33055768]
[1737786292754,1.5608,3292.8,3292.5,0.48601]
[1737786293445,1.5608,3292.8,3292.5,2.33055768]
[1737786293644,1.5608,3292.8,3292.7,0.48599]
[1737786293850,1.5608,3292.8,3292.5,2.81656768]
[1737786296960,1.5608,3292.8,3292.6,0.486]
[1737786297462,1.5608,3292.8,3292.5,2.33055768]
[1737786297658,1.5608,3292.8,3292.7,0.48599]
[1737786298655,1.5608,3292.8,3292.5,2.81655768]
[1737786298955,1.5608,3292.8,3292.0,4.266]
[1737786298956,2.04678,3292.8,3292.2,2.33055768]
[1737786299158,1.5608,3292.8,3292.2,2.33055768]
[1737786299351,0.48599,3292.7,3292.2,2.81661768]
[1737786299557,0.48599,3292.7,3292.2,0.48606]
[1737786300364,1.5608,3292.8,3292.0,4.266]
[1737786300564,0.48602,3292.5,3292.0,3.2078]
[1737786300766,5.53835768,3292.6,3292.0,3.2078]
[1737786301159,0.48608,3292.1,3292.0,3.2078]
[1737786303365,5.53835768,3292.6,3292.0,3.2078]
[1737786303673,0.48607,3292.2,3292.0,3.2078]
[1737786303968,1.6492,3292.1,3292.0,3.2078]
[1737786304668,1.6492,3292.1,3291.8,0.48612]
[1737786304669,4.857,3292.1,3291.8,0.48612]
[1737786304869,5.34308,3292.1,3291.6,3.85209768]
[1737786305271,4.857,3292.1,3291.6,3.85209768]
[1737786305875,4.857,3292.1,3291.6,3.36595768]
[1737786306071,1.6492,3292.1,3291.8,0.48612]
[1737786309272,1.6492,3292.1,3291.7,0.48613]
[1737786309873,1.6492,3292.1,3291.8,0.48612]
[1737786310680,1.6492,3292.1,3291.7,0.48613]
[1737786311373,1.6492,3292.1,3291.6,3.36595768]
[1737786311671,1.6492,3292.1,3291.8,0.48612]
[1737786311872,1.6492,3292.1,3291.6,3.36595768]
[1737786312071,1.6492,3292.1,3291.5,3.2078]
[1737786312072,4.857,3292.1,3291.5,3.2078]
[1737786312673,0.48615,3291.7,3291.5,3.2078]
[1737786312873,0.48617,3291.5,3291.2,0.00455789]
[1737786313180,1.6177,3291.4,3291.2,0.00455789]
[1737786315079,0.4862,3291.3,3291.2,0.00455789]
[1737786315277,4.45742503,3291.3,3291.2,0.00455789]
[1737786315474,3.97122503,3291.3,3291.2,0.00455789]
[1737786315673,1.6177,3291.4,3291.2,0.00455789]
[1737786316280,2.10389,3291.4,3291.2,0.00455789]
[1737786318381,1.6177,3291.4,3291.2,0.00455789]
[1737786319475,2.10388,3291.4,3291.2,0.00455789]
[1737786322085,1.6177,3291.4,3291.2,0.00455789]
[1737786324277,1.6177,3291.4,3291.2,0.49076789]
[1737786324480,3.2078,3291.6,3291.2,0.00455789]
[1737786324682,3.2078,3291.6,3291.3,1.03629]
[1737786325480,3.69395,3291.6,3291.3,1.03629]
[1737786325790,3.69395,3291.6,3291.3,0.5501]
[1737786326086,0.48618,3291.4,3291.2,0.00455789]
[1737786326389,1.0878,3291.3,3291.2,0.00455789]
[1737786326585,1.6089,3291.3,3291.2,0.00455789]
[1737786326991,2.0951,3291.3,3291.2,0.00455789]
[1737786329686,0.48631,3290.6,3290.3,0.48634]
[1737786329887,0.48633,3290.4,3290.1,0.48637]
[1737786330192,2.10012,3290.5,3290.1,0.48637]
[1737786330683,0.48634,3290.4,3290.0,1.03473789]
[1737786331795,2.10012,3290.5,3290.1,0.48637]
[1737786332186,3.21235789,3290.7,3290.4,0.48633]
[1737786332896,3.21235789,3290.7,3290.6,0.4863]
[1737786333998,3.21235789,3290.7,3290.1,2.33055768]
[1737786334188,0.48632,3290.5,3290.1,2.81691768]
[1737786334387,0.48632,3290.5,3290.1,0.48636]
[1737786334581,1.0864,3290.4,3290.1,0.48636]
[1737786335081,1.0864,3290.4,3290.0,0.54835789]
[1737786335279,0.48634,3290.3,3290.0,0.54835789]
[1737786335486,2.10903,3290.4,3290.0,0.54835789]
[1737786336383,1.6227,3290.4,3290.0,0.00455789]
[1737786337287,0.48635,3290.3,3290.0,0.00455789]
[1737786337487,1.6227,3290.4,3290.0,0.00455789]
[1737786337989,1.6227,3290.4,3290.0,1.03823789]
[1737786338588,0.48635,3290.3,3290.0,0.55185789]
[1737786339295,3.21235789,3290.7,3290.0,0.55185789]
[1737786339596,3.69864789,3290.7,3290.2,0.48635]
[1737786339785,3.69864789,3290.7,3290.3,0.5158]
[1737786339991,3.69864789,3290.7,3290.3,1.00214]
[1737786340192,0.4863,3290.6,3290.3,0.5158]
[1737786340583,3.21235789,3290.7,3290.3,0.5158]
[1737786340795,0.00455789,3290.7,3290.4,0.48633]
[1737786341089,0.00455789,3290.7,3290.3,0.5158]
[1737786341293,0.00455789,3290.7,3290.5,0.4863]
[1737786342691,0.00455789,3290.7,3290.6,0.4863]
[1737786352498,0.00455789,3290.7,3290.6,1.5643]
[1737786352699,1.1238,3291.5,3291.1,0.48622]
[1737786353001,1.1238,3291.5,3291.2,1.0537]
[1737786353697,1.60997,3291.5,3291.2,1.0537]
[1737786353898,1.60997,3291.5,3291.0,0.48623]
[1737786356198,1.60997,3291.5,3290.9,3.38425768]
[1737786356199,0.48621,3291.3,3290.9,3.38425768]
[1737786356400,0.48622,3291.2,3290.9,1.0537]
[1737786356595,0.551,3291.1,3290.9,1.0537]
[1737786357607,0.551,3291.1,3290.9,0.5108]
[1737786360407,1.03723,3291.1,3290.8,3.2078]
[1737786360607,0.551,3291.1,3290.8,3.2078]
[1737786360905,0.551,3291.1,3290.8,3.69407]
[1737786361106,0.551,3291.1,3290.8,3.2078]
[1737786361507,0.551,3291.1,3290.8,3.69407]
[1737786362907,0.551,3291.1,3290.8,0.48627]
[1737786363702,0.551,3291.1,3290.9,0.48625]
[1737786363906,0.00161824,3291.3,3291.1,0.48622]
[1737786364408,0.00161824,3291.3,3291.2,2.81676768]
[1737786366003,0.00161824,3291.3,3291.2,7.81676768]
[1737786366203,0.00455789,3291.7,3291.6,0.48615]
[1737786366399,0.00455789,3291.7,3291.6,6.02450768]
[1737786368509,0.00455789,3291.7,3291.6,5.53835768]
[1737786369308,0.00455789,3291.7,3291.6,6.02450768]
[1737786369910,0.00455789,3291.7,3291.6,2.33055768]
[1737786370110,0.49069789,3291.7,3291.3,2.33055768]
[1737786370415,0.49069789,3291.7,3291.2,3.2078]
[1737786370416,0.00455789,3291.7,3291.2,3.2078]
[1737786370902,0.48619,3291.4,3291.2,3.2078]
[1737786371108,2.1004,3291.3,3291.2,3.2078]
[1737786371307,1.6142,3291.3,3291.2,3.2078]
[1737786371510,1.6142,3291.3,3290.8,5.24623179]
[1737786371710,1.6142,3291.3,3290.8,4.75996179]
[1737786371908,2.1004,3291.3,3290.8,4.75996179]
[1737786372315,0.48625,3291.0,3290.8,4.75996179]
[1737786372509,1.6142,3291.3,3290.8,4.75996179]
[1737786372811,3.2078,3290.9,3290.7,7.13133812]
[1737786373009,6.2048,3290.9,3289.9,7.11696179]
[1737786373215,0.48637,3290.2,3289.9,7.11696179]
[1737786373518,0.5403,3290.1,3289.9,7.11696179]
[1737786373719,0.5403,3290.1,3289.9,3.90916179]
[1737786374713,1.02667,3290.1,3289.9,3.90916179]
[1737786375310,0.5403,3290.1,3289.9,3.90916179]
[1737786375817,0.5403,3290.1,3289.5,6.02481768]
[1737786377320,0.5403,3290.1,3289.5,5.53835768]
[1737786377515,0.5403,3290.1,3289.6,0.48645]
[1737786377910,0.5403,3290.1,3289.5,5.53835768]
[1737786378423,0.5403,3290.1,3289.6,0.48645]
[1737786379518,4.23447,3290.1,3289.5,5.53835768]
[1737786379816,3.7481,3290.1,3289.5,6.02481768]
[1737786380017,3.7481,3290.1,3289.6,0.48644]
[1737786381721,3.2078,3290.1,3289.8,2.33055768]
[1737786381921,3.2078,3290.1,3289.9,0.5488]
[1737786382111,3.2078,3290.1,3289.9,1.03519]
[1737786382315,3.2078,3290.1,3289.5,5.53835768]
[1737786382610,3.2078,3290.1,3289.5,6.02480768]
[1737786382817,3.2078,3290.1,3289.5,5.53835768]
[1737786383017,3.7441,3290.1,3289.6,0.48644]
[1737786385426,3.7441,3290.1,3289.5,6.02481768]
[1737786385617,3.7441,3290.1,3289.6,0.48645]
[1737786387629,3.7441,3290.1,3289.7,0.48642]
[1737786387929,3.2078,3290.1,3289.8,0.5687]
[1737786388124,3.2078,3290.1,3289.8,1.1325]
[1737786388633,3.2078,3290.1,3289.9,0.48639]
[1737786389725,0.5366,3290.4,3289.9,0.4864]
[1737786390021,0.5366,3290.4,3289.8,1.61891]
[1737786390022,0.48635,3290.3,3289.8,1.61891]
[1737786394135,0.48636,3290.2,3289.8,1.61891]
[1737786394337,0.48635,3290.3,3289.8,1.61891]
[1737786395340,0.5366,3290.4,3289.8,1.61891]
[1737786395637,0.48636,3290.2,3289.8,1.61891]
[1737786396037,0.48635,3290.3,3289.8,1.61891]
[1737786397043,0.48637,3290.1,3289.8,1.1325]
[1737786400234,3.69417,3290.1,3289.8,1.1325]
[1737786403437,0.48637,3290.1,3289.8,1.1325]
[1737786409441,6.2048,3290.5,3289.8,3.46305768]
[1737786409649,3.48332,3290.5,3290.1,0.48637]
[1737786410950,0.48637,3290.1,3289.8,1.1325]
[1737786411849,1.57447,3290.1,3289.8,1.1325]
[1737786420157,0.48649,3289.4,3289.1,3.2078]
[1737786420353,0.48649,3289.3,3289.2,0.5649]
[1737786421153,3.2078,3289.7,3289.1,3.2078]
[1737786421459,0.48652,3289.1,3289.0,0.5371]
[1737786422651,1.56981,3289.2,3289.0,0.5371]
[1737786422851,1.0833,3289.2,3289.0,0.5371]
[1737786423157,3.6943,3289.3,3289.0,0.5371]
[1737786423351,3.6943,3289.3,3289.0,1.0584]
[1737786424261,3.2078,3289.3,3289.0,1.0584]
[1737786425655,3.2078,3289.3,3289.0,0.5371]
[1737786425848,3.6943,3289.3,3289.0,0.5371]
[1737786426553,0.48651,3289.2,3289.0,0.5371]
[1737786427060,3.2078,3289.3,3289.0,0.5371]
[1737786427261,3.6943,3289.3,3289.0,0.5371]
[1737786427464,0.48651,3289.2,3289.0,0.5371]
[1737786428268,3.6943,3289.3,3289.0,0.5371]
[1737786428459,3.2078,3289.3,3289.0,1.0494]
[1737786428765,0.48651,3289.2,3289.0,1.0494]
[1737786429070,3.2078,3289.3,3289.0,1.0494]
[1737786429269,3.2078,3289.3,3289.0,1.53593]
[1737786429460,3.2078,3289.3,3289.0,1.0494]
[1737786429956,3.2078,3289.3,3289.1,0.48652]
[1737786430158,3.2078,3289.3,3289.0,1.53593]
[1737786430657,3.2078,3289.3,3289.1,0.48652]
[1737786431567,3.2078,3289.3,3289.0,1.53592]
[1737786431769,3.2078,3289.3,3289.0,1.0494]
[1737786432678,3.2078,3289.3,3289.0,1.53593]
[1737786434472,3.2078,3289.3,3289.0,1.0494]
[1737786435169,0.00455789,3289.6,3289.5,0.48646]
[1737786436178,0.00455789,3289.6,3289.5,2.81701768]
[1737786439074,11.76806309,3291.0,3289.8,2.33055768]
[1737786439075,0.5532,3290.6,3289.8,2.33055768]
[1737786439273,0.5532,3290.6,3290.1,2.33055768]
[1737786439474,0.5532,3290.6,3289.9,4.255]
[1737786439475,3.2078,3290.8,3290.6,0.4863]
[1737786439669,0.5218,3290.9,3290.7,1.53888]
[1737786439970,9.43750541,3291.0,3290.9,0.48626]
[1737786441168,9.43750541,3291.0,3290.8,0.48626]
[1737786441363,9.43750541,3291.0,3290.7,3.2078]
[1737786441569,0.48628,3290.7,3290.6,0.00455789]
[1737786441869,3.2078,3290.8,3290.6,0.00455789]
[1737786442069,3.7439,3290.8,3290.6,0.00455789]
[1737786442469,1.0604,3290.9,3290.6,0.00455789]
[1737786442470,0.5298,3290.9,3290.6,0.49085789]
[1737786443376,0.00455789,3291.1,3291.0,0.48624]
[1737786443578,0.00455789,3291.1,3290.7,6.05305768]
[1737786443873,0.00455789,3291.1,3291.0,0.48624]
[1737786444272,0.00455789,3291.1,3291.0,2.81679768]
[1737786448171,0.00455789,3291.1,3291.0,7.81679768]
[1737786448372,0.00455789,3291.1,3291.0,2.81679768]
[1737786451578,0.00455789,3291.1,3291.0,7.81679768]
[1737786452273,0.00455789,3291.1,3291.0,2.81679768]
[1737786453172,0.00455789,3291.1,3291.0,7.81679768]
[1737786458479,1.0829,3292.1,3291.0,7.81679768]
[1737786458480,1.0829,3292.1,3291.0,7.33055768]
[1737786458686,1.0829,3292.1,3292.0,2.81664768]
[1737786459684,1.0829,3292.1,3292.0,2.33055768]
[1737786462388,1.0829,3292.1,3292.0,2.81664768]
[1737786462888,1.0829,3292.1,3292.0,2.33055768]
[1737786463091,1.0829,3292.1,3292.0,2.81664768]
[1737786464390,0.5521,3292.1,3292.0,2.81664768]
[1737786466487,0.00297116,3292.4,3292.3,0.48605]
[1737786466785,0.00297116,3292.4,3292.3,2.81660768]
[1737786467384,0.00297116,3292.4,3292.3,3.90700768]
[1737786467592,0.00297116,3292.4,3292.3,4.47140768]
[1737786468588,3.2078,3294.1,3292.5,1.21502]
[1737786468792,0.48576,3294.3,3292.5,1.21502]
[1737786468793,0.5288,3293.8,3293.7,0.48584]
[1737786469488,0.5288,3293.8,3293.3,6.02424768]
[1737786469684,0.5288,3293.8,3293.3,2.81644768]
[1737786470080,0.5288,3293.8,3293.3,2.33055768]
[1737786470286,0.48584,3293.7,3293.2,0.00455789]
[1737786470492,0.48588,3293.5,3293.2,0.00455789]
[1737786470785,0.5039,3293.4,3293.2,0.00455789]
[1737786470985,1.52839,3293.4,3293.2,0.00455789]
[1737786472494,1.0425,3293.4,3293.2,0.00455789]
[1737786473193,1.0425,3293.4,3292.7,2.33055768]
[1737786473393,0.48594,3293.1,3292.5,3.69382]
[1737786473598,0.5233,3293.0,3292.5,3.69382]
[1737786474895,0.5233,3293.0,3292.5,3.2078]
[1737786475095,0.5233,3293.0,3292.5,3.69382]
[1737786476397,0.5136,3292.9,3292.5,3.69382]
[1737786476597,0.4811,3292.8,3292.5,3.2078]
[1737786476996,0.4811,3292.8,3292.6,0.486]
[1737786477992,0.4811,3292.8,3292.7,2.33055768]
[1737786479602,0.4811,3292.8,3292.7,2.81654768]
[1737786479904,0.4811,3292.8,3292.7,2.33055768]
[1737786482406,0.4811,3292.8,3292.7,2.81654768]
[1737786482606,0.4811,3292.8,3292.7,2.33055768]
[1737786483203,0.4811,3292.8,3292.6,0.486]
[1737786485113,0.4811,3292.8,3292.4,2.33511557]
[1737786485307,0.4811,3292.8,3292.4,2.82113557]
[1737786485799,0.4811,3292.8,3292.4,0.00455789]
[1737786486009,0.486,3292.7,3292.4,0.00455789]
[1737786486204,0.4811,3292.8,3292.4,0.00455789]
[1737786486605,0.486,3292.7,3292.4,0.00455789]
[1737786487206,0.4811,3292.8,3292.4,0.00455789]
[1737786487512,0.4811,3292.8,3292.4,2.82114557]
[1737786487711,0.48599,3292.7,3292.4,2.33511557]
[1737786488313,0.4811,3292.8,3292.4,2.33511557]
[1737786488508,0.486,3292.7,3292.4,2.33511557]
[1737786488709,3.6938,3292.7,3292.4,2.33511557]
[1737786489212,3.2078,3292.7,3292.5,0.48602]
[1737786489909,3.2078,3292.7,3292.4,2.33511557]
[1737786490607,3.2078,3292.7,3292.4,2.82114557]
[1737786490808,3.6938,3292.7,3292.4,2.33511557]
[1737786491415,3.2078,3292.7,3292.4,2.82113557]
[1737786491613,3.2078,3292.7,3292.4,2.82114557]
[1737786492013,3.2078,3292.7,3292.5,0.48601]
[1737786492315,3.2078,3292.7,3292.4,2.33511557]
[1737786492512,3.2078,3292.7,3292.4,0.00455789]
[1737786492711,0.48602,3292.5,3292.4,0.00455789]
[1737786500519,0.48601,3292.6,3292.4,0.00455789]
[1737786500825,3.2078,3292.7,3292.4,0.00455789]
[1737786501013,3.6938,3292.7,3292.4,0.00455789]
[1737786501319,3.2078,3292.7,3292.4,2.33511557]
[1737786501523,3.2078,3292.7,3292.5,0.5075]
[1737786502118,3.2078,3292.7,3292.5,0.99351]
[1737786502520,3.4781,3292.8,3292.5,0.99351]
[1737786502819,3.4781,3292.8,3292.6,0.486]
[1737786503522,3.4781,3292.8,3292.5,0.99351]
[1737786503723,3.4781,3292.8,3292.6,0.486]
[1737786503923,2.997,3292.8,3292.6,0.486]
[1737786504117,0.5136,3292.9,3292.7,0.48599]
[1737786505029,3.7209,3293.1,3293.0,0.48595]
[1737786505321,1.002,3293.5,3293.3,0.48589]
[1737786505631,1.002,3293.5,3293.4,0.48589]
[1737786505927,0.4774,3293.5,3293.4,0.48589]
[1737786506127,0.4774,3293.5,3293.1,0.9972]
[1737786506327,0.4774,3293.5,3293.3,0.48589]
[1737786506524,0.4774,3293.5,3293.4,0.48589]
[1737786507020,0.96328,3293.5,3293.1,0.9972]
[1737786507218,0.96328,3293.5,3293.3,0.4859]
[1737786508020,0.48589,3293.4,3293.2,0.48591]
[1737786508424,0.4774,3293.5,3293.2,0.48591]
[1737786508624,0.48589,3293.4,3293.2,0.48591]
[1737786509434,0.48592,3293.2,3293.1,0.4908]
[1737786510136,3.2078,3293.4,3292.9,0.48595]
[1737786510327,0.48592,3293.2,3292.9,0.48595]
[1737786510627,0.48592,3293.2,3293.0,0.48594]
[1737786511733,0.48593,3293.1,3292.9,0.48596]
[1737786512623,3.2078,3293.4,3292.9,0.48596]
[1737786512829,0.48592,3293.2,3292.9,0.48596]
[1737786513234,3.2078,3293.4,3292.9,0.48596]
[1737786513435,3.2078,3293.4,3292.8,0.9688]
[1737786513630,3.2078,3293.4,3292.9,0.48595]
[1737786513830,3.2078,3293.4,3292.8,0.9688]
[1737786514032,0.48596,3292.9,3292.8,0.9688]
[1737786514338,0.48596,3292.9,3292.8,0.4934]
[1737786514528,3.88949949,3293.3,3292.5,1.0106]
[1737786514723,3.88949949,3293.3,3292.5,0.496]
[1737786514724,0.9958,3292.8,3292.5,0.496]
[1737786514928,0.48599,3292.7,3292.5,0.496]
[1737786515137,0.9958,3292.8,3292.5,0.496]
[1737786515338,1.48178,3292.8,3292.5,0.98202]